[Event "15th Tashkent Open Agzamov 2022"]
[Site "Tashkent"]
[Date "2022.05.07"]
[Round "5.2"]
[White "Utegaliyev, Azamat"]
[Black "Bernadskiy, Vitaliy"]
[Result "1-0"]
[ECO "A25"]
[WhiteElo "2463"]
[BlackElo "2636"]
[Annotator "TA"]
[PlyCount "117"]
[EventDate "2022.05.05"]
[EventType "swiss"]
[EventCountry "UZB"]
[SourceTitle "playchess.com"]
[Source "ChessBase"]
[SourceQuality "1"]
[TimeControl "5400+30"]

{[%evp 12,117,19,-12,0,-2,2,18,27,21,12,23,16,26,29,22,19,0,20,4,27,24,27,29,60,52,62,69,74,56,69,52,52,27,52,30,44,24,29,34,30,30,29,33,50,37,43,25,33,20,42,31,52,39,70,66,63,13,243,189,345,331,310,305,276,218,739,713,1003,2269,2296,2269,2164,2233,2127,1478,1831,1812,1565,1502,1326,1031,1021,757,947,936,554,546,1064,1001,1545,1024,1981,1669,1976,1914,4134,3750,5065,3415,29972,29973,29972,29973,29973,29972,29969,29967]} 1. c4 {[%emt 0:00:07]} e5 {[%emt 0:03:53]} 2. d3 {[%emt 0:00:48]} f5 {[%emt 0:03:16]} 3. Nc3 {[%emt 0:00:57]} Nf6 {[%emt 0:01:45]} 4. g3 {[%emt 0:00:18]} Nc6 {[%emt 0:01:30]} 5. Bg2 {[%emt 0:00:11]} Bb4 {[%emt 0:00:30]} 6. Bd2 {[%emt 0:01:08]} O-O {[%emt 0:00:07]} 7. Nd5 {[%emt 0:02:55]} Bxd2+ {[%emt 0:00:27] A25: English Opening vs King's Indian with ...Nc6 but without early d3.} 8. Qxd2 {[%emt 0:00:04]} d6 {[%emt 0:00:17]} 9. e3 {[%emt 0:00:09]} Nxd5 {[%emt 0:03:23] The position is equal.} 10. cxd5 {[%emt 0:00:34]} Ne7 {[%emt 0:00:05][%cal Of5f4]} 11. Ne2 {[%emt 0:00:56] Inhibits f4.} c6 {[%emt 0:01:02]} 12. dxc6 {[%emt 0:02:35]} bxc6 {[%emt 0:00:33]} 13. O-O {[%emt 0:00:25]} Be6 {[%emt 0:01:01] [#]} 14. b4 $146 {[%emt 0:04:10]} ({Predecessor:} 14. d4 e4 15. Nf4 Bf7 16. b3 Qb6 17. Rac1 a5 18. f3 d5 19. Rc5 Qb4 20. Qc2 {1-0 (60) Abdalla,L (2072)-Milos,G (2593) ICC INT 2008}) 14... Rb8 {[%emt 0:08:18]} 15. Rfc1 {[%emt 0:02:36]} Qd7 {[%emt 0:00:18]} 16. a3 {[%emt 0:01:16]} Bd5 {[%emt 0:01:02]} 17. e4 {[%emt 0:02:38]} Be6 {[%emt 0:02:48]} 18. d4 {[%emt 0:08:31]} fxe4 {[%emt 0:00:31]} 19. dxe5 $1 {[%emt 0:00:07]} d5 {[%emt 0:00:07]} 20. Nd4 {[%emt 0:00:08]} Rf7 {[%emt 0:06:58]} 21. f3 {[%emt 0:07:49]} exf3 {[%emt 0:04:30]} 22. Bxf3 {[%emt 0:00:05]} Rbf8 {[%emt 0:01:10]} 23. Bg2 {[%emt 0:00:39]} Bh3 {[%emt 0:06:00]} 24. Rf1 {[%emt 0:04:03]} Rxf1+ $1 {[%emt 0:04:41]} 25. Rxf1 {[%emt 0:00:05]} Rxf1+ {[%emt 0:01:12]} 26. Bxf1 {[%emt 0:00:37]} Bxf1 {[%emt 0:04:31]} 27. Kxf1 $11 {[%emt 0:11:28][%mdl 4096] Endgame KQN-KQN} Qg4 {[%emt 0:02:11]} 28. Qf4 {[%emt 0:03:25]} Qd1+ {[%emt 0:00:17]} 29. Kg2 {[%emt 0:00:21]} h6 {[%emt 0:00:19]} 30. e6 {[%emt 0:04:54]} Kh7 {[%emt 0:02:11][%cal Oa7a5]} 31. Qe3 {[%emt 0:00:32]} Qb1 {[%emt 0:05:02]} 32. g4 {[%emt 0:01:59] Active counter play!} (32. h4 $5 {[%cal Rg3g4]}) 32... Qd1 {[%emt 0:08:30]} 33. Kg3 {[%emt 0:01:15]} Qb1 $1 {[%emt 0:05:10]} 34. h4 {[%emt 0:01:53]} ({Better is} 34. h3 $14) 34... Kg8 $2 {[%emt 0:09:12] This move loses the game for Black.} (34... h5 $1 $11 {and Black stays safe.}) 35. h5 {[%emt 0:02:26] Threatens to win with Nf3.} Qb2 $2 {[%emt 0:02:50]} (35... g5 {was called for.} 36. Nf3 Qe4 37. Qxa7 Qxe6) 36. Nf3 {[%emt 0:02:40]} Qf6 {[%emt 0:00:51]} 37. Qe5 {[%emt 0:00:16]} ({Don't play} 37. Qxa7 $6 Qxe6 38. Qb8+ Kh7 $18) 37... Qf8 {[%emt 0:01:42]} 38. Qf4 {[%emt 0:01:52] aiming for Qxf8+.} Qd8 $2 {[%emt 0:00:29]} (38... g5 39. Qxf8+ Kxf8) 39. g5 $18 {[%emt 0:13:18] [#] Qf7+ is the strong threat.} hxg5 {[%emt 0:02:22]} 40. Nxg5 {[%emt 0:00:44][%cal Oh5h6] Threatening mate with h6!} Qf8 {[%emt 0:02:15]} 41. Qf7+ {[%emt 0:00:28]} Qxf7 {[%emt 0:00:05]} 42. exf7+ {[%emt 0:00:04] KN-KN} Kf8 {[%emt 0:00:04]} 43. Kf4 {[%emt 0:00:03] Hoping for Ke5.} Nc8 {[%emt 0:01:28]} 44. Kf5 {[%emt 0:00:31] Ke6 would kill now.} Ke7 {[%emt 0:00:32]} 45. Kg6 {[%emt 0:08:16]} Nd6 {[%emt 0:00:03] [#]} 46. Ne6 $1 {[%emt 0:00:05][%mdl 512]} Nxf7 {[%emt 0:00:23]} 47. Nd4 {[%emt 0:00:03]} Kf8 {[%emt 0:01:01]} 48. Nxc6 {[%emt 0:00:04]} Nd6 {[%emt 0:00:16]} 49. a4 {[%emt 0:00:48][%cal Ba3a4,Ba4a5][%mdl 32]} a6 {[%emt 0:01:36]} 50. Nd4 {[%emt 0:00:51]} Nc4 {[%emt 0:00:22]} 51. a5 {[%emt 0:02:38]} ({Less strong is} 51. Ne6+ Kg8 52. Kf5 (52. Nxg7 d4 $11) 52... a5 $18) 51... Kg8 {[%emt 0:00:22]} 52. Kf5 {[%emt 0:02:58] Strongly threatening Ke6.} Kf7 {[%emt 0:02:34]} 53. Nc6 {[%emt 0:00:05]} Ke8 {[%emt 0:01:10]} 54. Ke6 {[%emt 0:00:19]} Ne3 {[%emt 0:00:14]} 55. Nd4 {[%emt 0:00:09] And now b5 would win.} Ng4 {[%emt 0:00:35]} 56. b5 {[%emt 0:00:20][%cal Bb4b5,Bb5a6][%mdl 32] White mates.} Kd8 {[%emt 0:00:39]} 57. bxa6 {[%emt 0:01:42]} Kc8 {[%emt 0:02:00]} 58. Kf7 {[%emt 0:01:38]} Kb8 {[%emt 0:00:23]} 59. Nb5 {[%emt 0:00:05] Weighted Error Value: White=0.12 (very precise) /Black=0.42} 1-0

[Event "15th Tashkent Open Agzamov 2022"]
[Site "Tashkent"]
[Date "2022.05.07"]
[Round "5.3"]
[White "Indjic, Aleksandar"]
[Black "Vokhidov, Shamsiddin"]
[Result "1-0"]
[ECO "E36"]
[WhiteElo "2621"]
[BlackElo "2536"]
[Annotator "TA"]
[PlyCount "51"]
[EventDate "2022.05.05"]
[EventType "swiss"]
[EventCountry "UZB"]
[SourceTitle "playchess.com"]
[Source "ChessBase"]
[SourceQuality "1"]
[TimeControl "5400+30"]

{[%evp 11,51,15,21,0,8,0,0,0,-3,-10,0,0,0,0,0,-2,-2,0,-22,-83,-110,-127,-92,-108,-30,-60,205,195,277,258,241,240,434,440,425,438,531,488,496,497,462,451]} 1. d4 {[%emt 0:03:14]} Nf6 {[%emt 0:00:07]} 2. c4 {[%emt 0:00:44]} e6 {[%emt 0:00:06]} 3. Nc3 {[%emt 0:00:36]} Bb4 {[%emt 0:00:07]} 4. Qc2 {[%emt 0:00:11]} d5 {[%emt 0:01:37]} 5. a3 {[%emt 0:01:45]} Bxc3+ {[%emt 0:00:13]} 6. Qxc3 {[%emt 0:00:09]} O-O {[%emt 0:00:06]} 7. e3 {[%emt 0:00:41][%cal Be2e3,Be3e4,Be4e5][%mdl 32] E36: Nimzo-Indian: Classical: 4...d5 5 a3.} b6 {[%emt 0:02:38]} 8. cxd5 {[%emt 0:00:23]} Nxd5 {[%emt 0:01:07]} 9. Qc2 {[%emt 0:00:11] The position is equal.} Bb7 {[%emt 0:00:33][%cal Oc7c5]} 10. Nf3 {[%emt 0:12:25]} Nd7 {[%emt 0:00:43]} 11. Bd3 {[%emt 0:04:44]} h6 {[%emt 0:04:06]} 12. e4 {[%emt 0:00:43]} N5f6 {[%emt 0:01:33] [#]} 13. e5 $146 {[%emt 0:01:48]} ({Predecessor:} 13. Bf4 c5 14. Bd6 Re8 15. e5 Nd5 16. O-O cxd4 17. Rad1 Nf4 18. Bc7 Qc8 19. Bh7+ {½-½ (52) Lo Nigro,F (2265)-Perry,R (2108) ICCF email 2017}) 13... Nd5 {[%emt 0:02:57]} 14. h4 {[%emt 0:00:07][%cal Of3g5]} f5 {[%emt 0:26:07]} 15. Rh3 {[%emt 0:08:13]} (15. exf6 $11 {keeps the balance.} N5xf6 16. Be3) 15... c5 $17 {[%emt 0:06:51]} 16. Rg3 {[%emt 0:00:23]} Kh8 {[%emt 0:05:21]} 17. Rg6 {[%emt 0:01:50][%cal Oc1h6] [#] And now Bxh6! would win.} Ne7 {[%emt 0:09:14] Pair of Knights!} (17... Qe8 $17 18. h5 Rf7) 18. Rxe6 $11 {[%emt 0:00:08][%cal Oc1h6] Hoping for Bxh6!} Bd5 $2 {[%emt 0:03:32][%mdl 8192] This costs Black the game.} (18... Bxf3 $15 {keeps the upper hand.} 19. gxf3 cxd4) 19. Rd6 $18 {[%emt 0:00:23]} Bxf3 {[%emt 0:00:04]} (19... c4 $142) 20. gxf3 {[%emt 0:00:33]} Nc8 {[%emt 0:00:08] [#]} 21. Re6 {[%emt 0:04:59][%cal Oc1h6] Bxh6! is the strong threat.} cxd4 $2 {[%emt 0:03:36]} (21... Qxh4 {might work better.} 22. Bb5 (22. d5 Ne7 $11) 22... Nb8 23. dxc5 a6) 22. Qc6 {[%emt 0:02:05] Rxh6+ would kill now. White is clearly winning.} Nxe5 {[%emt 0:03:53]} 23. Rxe5 {[%emt 0:00:19]} Nd6 {[%emt 0:00:51]} 24. Qd5 {[%emt 0:02:44][%csl LRd4,LRf5]} Qf6 {[%emt 0:02:07]} 25. Qe6 {[%emt 0:00:41]} Qd8 {[%emt 0:00:43]} 26. Qe7 {[%emt 0:03:25] Weighted Error Value: White=0.10 (very precise) /Black=0.38} ({Weaker is} 26. Bxh6 Rf6 27. Bxg7+ Kxg7 $16) 1-0

[Event "15th Tashkent Open Agzamov 2022"]
[Site "Tashkent"]
[Date "2022.05.07"]
[Round "5.4"]
[White "Agmanov, Zhandos"]
[Black "Mchedlishvili, Mikheil"]
[Result "1/2-1/2"]
[ECO "B52"]
[WhiteElo "2420"]
[BlackElo "2595"]
[Annotator "TA"]
[PlyCount "32"]
[EventDate "2022.05.05"]
[EventType "swiss"]
[EventCountry "UZB"]
[SourceTitle "playchess.com"]
[Source "ChessBase"]
[SourceQuality "1"]
[TimeControl "5400+30"]

{[%evp 14,32,5,0,27,14,23,0,29,21,25,25,22,27,31,25,21,15,21,21,37]} 1. e4 {[%emt 0:04:54]} c5 {[%emt 0:00:11]} 2. Nf3 {[%emt 0:00:06]} d6 {[%emt 0:00:24]} 3. Bb5+ {[%emt 0:00:55]} Bd7 {[%emt 0:01:17]} 4. Bxd7+ {[%emt 0:01:05]} Nxd7 {[%emt 0:00:35]} 5. O-O {[%emt 0:01:13]} Ngf6 {[%emt 0:01:04]} 6. Qe2 {[%emt 0:01:31]} e6 {[%emt 0:01:22]} 7. d4 {[%emt 0:00:52] Recently 7.c3 got a lot of attention.} cxd4 {[%emt 0:01:07]} 8. Nxd4 {[%emt 0:00:07]} a6 {[%emt 0:01:50] B52: Sicilian: Moscow Variation with 3...Bd7.} 9. c4 {[%emt 0:02:53]} Qa5 {[%emt 0:02:10]} 10. Rd1 {[%emt 0:33:14]} Rc8 {[%emt 0:02:55]} 11. b3 {[%emt 0:00:51]} Be7 {[%emt 0:01:47]} 12. Bb2 {[%emt 0:00:41]} O-O {[%emt 0:09:56]} 13. Nc3 {[%emt 0:01:53]} Rfe8 {[%emt 0:03:18]} 14. Rac1 {[%emt 0:02:39]} Bf8 {[%emt 0:06:44]} 15. h3 {[%emt 0:10:19]} Ne5 {[%emt 0:07:44] [#]} 16. Qd2 $146 {[%emt 0:03:23]} ({Predecessor:} 16. Nf3 Ng6 17. g3 Rb8 18. a3 Rbc8 19. Kg2 Nd7 20. b4 Qc7 21. Nb1 Qb8 22. Nbd2 {0-1 (56) Maze,S (2557)-Jumabayev,R (2654) Chess.com INT 2020}) 16... Qb6 {[%emt 0:05:38] An uneventful encounter.  Weighted Error Value: White=0.02 (flawless) /Black=0.06 (flawless)} 1/2-1/2

[Event "15th Tashkent Open Agzamov 2022"]
[Site "Tashkent"]
[Date "2022.05.07"]
[Round "5.5"]
[White "Asadli, Vugar"]
[Black "Nigmatov, Ortik"]
[Result "1-0"]
[ECO "D00"]
[WhiteElo "2578"]
[BlackElo "2463"]
[Annotator "TA"]
[PlyCount "113"]
[EventDate "2022.05.05"]
[EventType "swiss"]
[EventCountry "UZB"]
[SourceTitle "playchess.com"]
[Source "ChessBase"]
[SourceQuality "1"]
[TimeControl "5400+30"]

{[%evp 9,113,8,0,0,0,-10,1,3,12,0,7,0,0,-16,-2,-25,-23,0,51,52,52,-22,0,0,60,18,38,48,42,35,52,51,59,0,0,0,53,33,52,31,28,28,22,0,0,0,0,0,0,0,0,0,0,0,0,0,0,0,0,0,27,40,39,0,0,0,0,0,34,0,8,8,8,8,8,8,8,8,8,8,8,8,57,8,8,8,931,743,1935,0,1633,1429,2278,2184,1662,1193,4594,1336,5112,4134,29982,29984,29983,29984,29993,29994]} 1. d4 {[%emt 0:00:07]} Nf6 {[%emt 0:00:12]} 2. Nf3 {[%emt 0:00:07]} g6 {[%emt 0:00:12]} 3. Nc3 {[%emt 0:00:06]} d5 {[%emt 0:06:22]} 4. Bf4 {[%emt 0:00:21]} Bg7 {[%emt 0:00:30]} 5. e3 {[%emt 0:00:36]} O-O {[%emt 0:00:41]} 6. Nb5 {[%emt 0:00:05] D00: 1 d4 d5: Unusual lines.} Na6 {[%emt 0:00:14]} 7. h3 {[%emt 0:00:06]} c6 {[%emt 0:00:20]} 8. Nc3 {[%emt 0:00:06] The position is equal.} Qa5 {[%emt 0:03:00]} 9. Nd2 {[%emt 0:05:17]} Nd7 {[%emt 0:02:45]} 10. Nb3 {[%emt 0:01:48]} Qb6 {[%emt 0:01:05] [#]} 11. Bh2 $146 {[%emt 0:02:57]} ({Predecessor:} 11. Be2 e5 12. Bg3 Re8 13. O-O Nab8 14. Na4 Qb4 15. Nc3 Qe7 16. Re1 h5 17. Bf1 {1-0 (58) Melkumyan,H (2660)-Jones,G (2677) Chess.com INT 2018}) 11... e5 {[%emt 0:00:43]} 12. Qd2 {[%emt 0:05:58]} Re8 {[%emt 0:05:26]} 13. O-O-O {[%emt 0:01:02]} Qb4 {[%emt 0:04:31] Against Na4} (13... Nb4 $11) 14. Bxa6 $14 {[%emt 0:09:32]} bxa6 {[%emt 0:00:06]} 15. Ne4 {[%emt 0:00:56]} Qa4 {[%emt 0:08:47]} (15... a5 $11 16. Qxb4 axb4) 16. Nc3 {[%emt 0:03:56]} Qb4 {[%emt 0:00:11]} 17. g4 {[%emt 0:03:39]} exd4 {[%emt 0:12:19]} 18. exd4 {[%emt 0:03:15]} Nb6 $1 {[%emt 0:00:14]} 19. Rhe1 {[%emt 0:04:53]} Rxe1 {[%emt 0:14:18]} 20. Rxe1 {[%emt 0:00:29] Hoping for Re8+.} Be6 {[%emt 0:01:10]} 21. Ne4 {[%emt 0:07:20]} Qa4 $1 {[%emt 0:01:26]} 22. Nc3 {[%emt 0:03:39][%cal Be4c3,Bc3a4,Ba4c5,Bc5d3][%mdl 32]} Qb4 {[%emt 0:00:06]} 23. a3 {[%emt 0:02:24]} (23. Ne2 $5 {[%cal Rd2b4]} Qxd2+ 24. Kxd2 $11) 23... Qf8 {[%emt 0:00:05]} 24. Bf4 {[%emt 0:08:00]} Nc4 {[%emt 0:02:14]} 25. Qd3 {[%emt 0:00:56]} Re8 {[%emt 0:06:55]} 26. Na4 {[%emt 0:05:36]} Bd7 {[%emt 0:05:52]} 27. Qc3 {[%emt 0:01:33]} Bh6 {[%emt 0:02:14]} 28. g5 $1 {[%emt 0:03:24]} Bg7 {[%emt 0:00:09]} 29. h4 {[%emt 0:01:02]} f6 {[%emt 0:00:24]} 30. Rxe8 {[%emt 0:00:42]} Qxe8 {[%emt 0:00:38]} 31. Nac5 {[%emt 0:00:14] Inhibits Qe4.} Qe2 {[%emt 0:01:29] ( -> ...Qf1+)} 32. Kb1 {[%emt 0:00:50]} Bf5 {[%emt 0:00:17]} 33. Nd3 {[%emt 0:01:16]} fxg5 {[%emt 0:02:14]} 34. hxg5 {[%emt 0:00:05]} Qf3 {[%emt 0:07:48]} 35. Bc1 {[%emt 0:01:06]} a5 {[%emt 0:01:20]} 36. Nd2 {[%emt 0:03:04]} Nxd2+ {[%emt 0:03:05]} 37. Bxd2 {[%emt 0:00:14]} Bxd3 {[%emt 0:00:45]} 38. cxd3 $11 {[%emt 0:00:08][%mdl 4096] Endgame KQB-KQB} c5 {[%emt 0:03:20]} 39. Qxc5 {[%emt 0:02:04] Black must now prevent Be3.} (39. Be3 $5 {[%cal Rc3c5]}) 39... Qxd3+ {[%emt 0:00:04]} 40. Kc1 {[%emt 0:00:53]} Bxd4 {[%emt 0:06:14]} 41. Qxd5+ {[%emt 0:01:32]} Kf8 $1 {[%emt 0:00:00][%cal Od4b2] Strongly threatening ...Bxb2+!} 42. Qxa5 {[%emt 0:03:57]} Qc4+ {[%emt 0:00:08]} 43. Kd1 {[%emt 0:01:02]} Qf1+ {[%emt 0:00:19]} ({Don't take} 43... Bxb2 44. Bb4+ Kf7 45. Qxa7+ Ke6 46. Qe7+ Kf5 47. Qd7+ Qe6 48. Qd3+ Qe4 49. Qd7+ Qe6 50. Qd3+ Qe4 51. Qd7+ Qe6 $16) 44. Kc2 {[%emt 0:00:13]} Qc4+ {[%emt 0:00:49]} 45. Bc3 {[%emt 0:00:35] Qd8+ is the strong threat.} Qe2+ {[%emt 0:00:50]} (45... Kf7 $11 {might be stronger.}) 46. Kb3 {[%emt 0:01:00]} (46. Kb1 $14 Qd3+ 47. Ka1 Qf1+ 48. Be1) 46... Qe6+ {[%emt 0:00:16]} 47. Ka4 {[%emt 0:01:34] aiming for Qd8+.} Qe8+ {[%emt 0:00:14][%mdl 8192]} (47... Bxf2 $11 48. Qd8+ Kf7) 48. Qb5 $18 {[%emt 0:01:20]} Bxf2 {[%emt 0:00:11]} 49. Qxe8+ {[%emt 0:01:11]} Kxe8 {[%emt 0:00:01] [#] KB-KB} 50. Bd2 {[%emt 0:00:00] Prevents Be3.} Kd7 {[%emt 0:01:05]} 51. Kb5 {[%emt 0:00:04]} Kd6 {[%emt 0:01:42]} 52. b4 {[%emt 0:00:54][%cal Bb2b4,Bb4b5][%mdl 32]} Kc7 {[%emt 0:00:34] [#]} 53. Ka6 $1 {[%emt 0:00:16]} Kb8 {[%emt 0:00:30]} 54. b5 {[%emt 0:00:11]} Ka8 {[%emt 0:00:10]} 55. Bf4 {[%emt 0:00:31] White mates.} Bd4 {[%emt 0:00:53]} 56. a4 {[%emt 0:00:14][%cal Ba3a4,Ba4a5][%mdl 32]} Bg7 {[%emt 0:00:31]} 57. a5 {[%emt 0:00:15] Weighted Error Value: White=0.22 (precise) /Black=0.23 (precise)} 1-0

[Event "15th Tashkent Open Agzamov 2022"]
[Site "Tashkent"]
[Date "2022.05.07"]
[Round "5.6"]
[White "Abdurakhmonov, Mukhammadali"]
[Black "Sanal, Vahap"]
[Result "1/2-1/2"]
[ECO "B07"]
[WhiteElo "2308"]
[BlackElo "2575"]
[Annotator "TA"]
[PlyCount "82"]
[EventDate "2022.05.05"]
[EventType "swiss"]
[EventCountry "UZB"]
[SourceTitle "playchess.com"]
[Source "ChessBase"]
[SourceQuality "1"]
[TimeControl "5400+30"]

{[%evp 9,82,31,58,46,46,34,49,26,43,38,44,40,82,87,93,65,94,80,116,112,126,129,197,193,275,270,262,281,345,337,327,313,383,373,589,574,558,542,671,663,663,652,667,507,485,61,62,62,64,37,66,54,92,81,111,18,78,79,121,123,123,122,116,73,73,73,73,73,73,73,73,73,73,73,73]} 1. d4 {[%emt 0:02:01]} d6 {[%emt 0:00:36]} 2. e4 {[%emt 0:00:48]} Nf6 {[%emt 0:00:11]} 3. f3 {[%emt 0:00:06]} e6 {[%emt 0:01:27]} 4. c4 {[%emt 0:09:56]} Be7 {[%emt 0:00:51][%cal Bf8e7,Be7d8,Bd8b6,Bb6a5][%mdl 32]} 5. Nc3 {[%emt 0:00:42]} c5 {[%emt 0:00:15] [#]} 6. dxc5 $146 {[%emt 0:01:56] B07: Pirc Defence: Miscellaneous Systems.} ({Predecessor:} 6. d5 e5 7. h3 Nbd7 8. Bd3 Nf8 9. Be3 Ng6 10. g3 Bd7 11. a3 Qc8 {1-0 (11) Goldstern,F (2310)-Gherghel Butan,M (1738) Stein am Rhein 2016}) 6... dxc5 {[%emt 0:00:15]} 7. Qxd8+ $1 {[%emt 0:00:06]} Bxd8 {[%emt 0:02:10]} 8. Be3 {[%emt 0:00:15] White is slightly better.} Nfd7 {[%emt 0:04:59]} 9. O-O-O {[%emt 0:02:40]} Nc6 {[%emt 0:00:51]} 10. Nb5 {[%emt 0:05:01]} Ke7 {[%emt 0:01:51]} 11. f4 {[%emt 0:04:41]} Bb6 {[%emt 0:11:25]} 12. Nf3 {[%emt 0:08:22]} f6 {[%emt 0:28:09]} 13. g4 {[%emt 0:16:42] White is much more active. The black rooks are badly placed.} a6 {[%emt 0:04:53]} 14. Nc3 {[%emt 0:01:14]} Ba5 {[%emt 0:05:19]} 15. Rg1 {[%emt 0:04:23]} b6 {[%emt 0:06:24] [#]} (15... Bxc3 $16 {is a better defense.} 16. bxc3 e5) 16. g5 $1 $18 {[%emt 0:04:23]} Nd8 {[%emt 0:04:49]} (16... g6 $142 17. Bg2 Ra7 18. gxf6+ Nxf6) 17. gxf6+ {[%emt 0:00:54]} gxf6 {[%emt 0:00:09]} 18. e5 {[%emt 0:04:04]} ({Much less strong is} 18. Rg7+ Nf7 19. Bh3 Bxc3 $18) 18... Bxc3 {[%emt 0:03:09]} 19. bxc3 {[%emt 0:00:21]} Nf7 {[%emt 0:00:38]} 20. Bf2 {[%emt 0:06:25][%cal Be3f2,Bf2h4,Bh4f6][%mdl 32]} ({Less strong is} 20. Rg7 Kf8 21. Rg2 (21. exf6 Nxf6 22. Rg1 Rg8 $16) 21... Rg8 22. exf6 Rxg2 23. Bxg2 Rb8 $16) 20... fxe5 {[%emt 0:08:19]} 21. Bh4+ {[%emt 0:00:33]} Ke8 {[%emt 0:00:14]} (21... Kf8 $142 22. Nxe5 Ndxe5) 22. Nxe5 {[%emt 0:00:42]} Ndxe5 {[%emt 0:00:21]} 23. fxe5 {[%emt 0:00:25]} Bb7 {[%emt 0:00:29]} 24. Bf6 {[%emt 0:00:57]} Rf8 {[%emt 0:00:02]} 25. Be2 {[%emt 0:00:08] Against Bf3} Be4 {[%emt 0:00:27]} 26. Bh5 {[%emt 0:02:37]} Bg6 {[%emt 0:00:02]} 27. Bf3 {[%emt 0:00:05] This bishop pair is nice.} (27. Bxg6 $18 {Threatening mate with Bh5.} hxg6 28. Rxg6) 27... Nxe5 $1 $14 {[%emt 0:00:21]} 28. Bxa8 {[%emt 0:05:42]} Rxf6 {[%emt 0:00:02]} 29. Rdf1 {[%emt 0:03:23] Prevents Rf4.} Rxf1+ {[%emt 0:00:27]} 30. Rxf1 {[%emt 0:00:06]} Nxc4 {[%emt 0:00:05][%mdl 4096] Endgame KRB-KBN} 31. Re1 {[%emt 0:01:32]} Kf7 {[%emt 0:01:27] [#]} 32. Be4 {[%emt 0:01:15]} (32. Bb7 $1 $16 {[%cal Rb7a6]}) 32... b5 {[%emt 0:00:07]} (32... Nd6 $11 33. Bxg6+ hxg6) 33. Bb7 $16 {[%emt 0:03:36][%mdl 1024] White has strong compensation. White is better.} a5 {[%emt 0:00:53]} 34. Ba6 {[%emt 0:00:16]} Nd6 {[%emt 0:00:07]} 35. Re5 {[%emt 0:00:21]} Ne4 {[%emt 0:02:22] aiming for ...Kf6.} 36. Bb7 {[%emt 0:03:10]} ({Inferior is} 36. Bxb5 Kf6 37. Rxe4 Bxe4 $17) 36... Nxc3 {[%emt 0:00:27]} 37. Rxc5 {[%emt 0:00:24]} Nxa2+ {[%emt 0:00:05]} 38. Kb2 {[%emt 0:00:04]} Nb4 {[%emt 0:00:11] Threatens to win with ...Nd3+.} 39. Rxb5 {[%emt 0:00:23]} Nd3+ {[%emt 0:03:22]} 40. Kc3 {[%emt 0:00:19]} Kf6 {[%emt 0:00:31]} 41. Rxa5 {[%emt 0:00:13]} Ne5 {[%emt 0:01:07] Black escapes into a draw.  Weighted Error Value: White=0.34/Black=0.35} 1/2-1/2